Workbook

Sheet Zero Growth Model
A1: Dividend | B1: $2.00
A2: Required Return | B2: 10%
A3: Stock Price | B3: =B1/B2 -> $20.00

Sheet Gordon Growth Model
A1: Dividend | B1: $2.00
A2: Discount Rate | B2: 10%
A3: Growth Rate | B3: 5%
A4: Stock Price | B4: =B1/(B2-B3) -> $40.00

Sheet Multi-Stage Model
A1: D0 | B1: $3.00 | D1: Year | E1: Growth Rate | F1: Dividend | G1: PV Factor | H1: Present Value of Dividend
A2: Growth for Year 1-3 | B2: 25% | D2: 1 | E2: 25% | F2: =B1+(B1*E2) -> $3.75 | G2: =(1+$B$5)^-D2 -> 0.9 | H2: =F2*G2 -> $3.26
A3: Growth for Year 4-5 | B3: 10% | D3: 2 | E3: 25% | F3: =F2+(F2*E3) -> $4.69 | G3: =(1+$B$5)^-D3 -> 0.8 | H3: =F3*G3 -> $3.54
A4: Growth for Year 6+ | B4: 5% | D4: 3 | E4: 25% | F4: =F3+(F3*E4) -> $5.86 | G4: =(1+$B$5)^-D4 -> 0.7 | H4: $3.85
A5: Rate of Return | B5: 15% | D5: 4 | E5: 10% | F5: $6.45 | G5: =(1+$B$5)^-D5 -> 0.6 | H5: $3.69
D6: 5 | E6: 10% | F6: $7.09 | G6: 0.5 | H6: $3.52
D7: Terminal Value | E7: 5% | F7: =(F6+(F6*B4))/(B5-B4) -> $74.44 | G7: 0.5 | H7: $37.01
G8: Stock Value | H8: =SUM(H2:H7) -> $54.88
